bitfinex/quotes_BTCUSD_20250225
["timestamp","ask_amount","ask_price","bid_price","bid_amount"]
[1740450784629,0.0008488,92589.0,92551.0,0.47716207]
[1740450784840,0.0008488,92589.0,92572.0,0.00827145]
[1740450785490,0.0008488,92589.0,92554.0,0.15]
[1740450788433,0.0008488,92589.0,92549.0,0.2278]
[1740450790862,0.02597933,92587.0,92552.0,0.00800359]
[1740450791165,0.02597933,92587.0,92549.0,0.0778]
[1740450791847,0.0883173,92586.0,92549.0,0.0778]
[1740450792049,0.01151454,92585.0,92549.0,0.0778]
[1740450792253,0.01151454,92585.0,92521.0,0.08642529]
[1740450792254,0.02267454,92585.0,92538.0,0.0814]
[1740450792758,0.00188185,92584.0,92538.0,0.0814]
[1740450793130,0.08642529,92575.0,92538.0,0.0814]
[1740450793544,0.00188185,92574.0,92538.0,0.0814]
[1740450793746,0.00883071,92573.0,92536.0,0.00800848]
[1740450794149,0.00188185,92572.0,92536.0,0.00800848]
[1740450794860,0.17366094,92585.0,92536.0,0.00800848]
[1740450794993,0.00188185,92571.0,92536.0,0.00800848]
[1740450795200,0.17366094,92585.0,92536.0,0.00800848]
[1740450795398,0.08642529,92576.0,92528.0,0.0482]
[1740450795603,0.08642529,92565.0,92528.0,0.0482]
[1740450795810,0.08642529,92554.0,92517.0,0.077]
[1740450796051,0.0112,92553.0,92517.0,0.077]
[1740450796250,0.08642529,92540.0,92509.0,0.02500355]
[1740450796402,0.08642529,92540.0,92493.0,0.0771]
[1740450796606,0.16161253,92552.0,92507.0,0.02559282]
[1740450796607,0.00164444,92539.0,92507.0,0.02559282]
[1740450796857,0.15976253,92552.0,92507.0,0.02559282]
[1740450797031,0.01305,92551.0,92509.0,0.1979]
[1740450797229,0.01102315,92550.0,92509.0,0.1979]
[1740450797505,0.0112,92551.0,92547.0,0.0016938]
[1740450797733,0.00162014,92549.0,92547.0,0.0016938]
[1740450797940,0.0112,92551.0,92547.0,0.0016938]
[1740450798151,0.00179983,92548.0,92547.0,0.0016938]
[1740450798353,0.0112,92551.0,92547.0,0.0016938]
[1740450798552,0.00159985,92548.0,92547.0,0.0016938]
[1740450798755,0.0112,92551.0,92547.0,0.00182275]
[1740450798957,0.00179983,92548.0,92547.0,0.00182275]
[1740450799153,0.0112,92551.0,92547.0,0.00182275]
[1740450799417,0.00179983,92548.0,92547.0,0.00149575]
[1740450799602,0.0112,92554.0,92547.0,0.00149575]
[1740450799776,0.00179983,92548.0,92547.0,0.00149575]
[1740450799980,0.0112,92554.0,92547.0,0.00149575]
[1740450800196,0.00179983,92548.0,92547.0,0.00149575]
[1740450800464,0.00994251,92548.0,92547.0,0.00149575]
[1740450800652,0.01174234,92548.0,92547.0,0.00149575]
[1740450801735,0.01174234,92548.0,92547.0,0.00084175]
[1740450802108,0.01987661,92548.0,92547.0,0.00084175]
[1740450802308,0.16987661,92548.0,92507.0,0.00028799]
[1740450802515,0.08642529,92531.0,92507.0,0.00028799]
[1740450803062,0.08741019,92531.0,92507.0,0.00028799]
[1740450803878,0.01124,92530.0,92507.0,0.00028799]
[1740450804993,0.00812,92530.0,92507.0,0.00028799]
[1740450805362,0.08642529,92529.0,92507.0,0.00028799]
[1740450805581,0.08642529,92519.0,92507.0,0.00028799]
[1740450806799,0.08642529,92519.0,92507.0,0.00071776]
[1740450807231,0.00804649,92513.0,92507.0,0.00071776]
[1740450807683,0.08642529,92509.0,92507.0,0.00071776]
[1740450808513,0.08642529,92509.0,92507.0,0.00241196]
[1740450808730,0.15944718,92508.0,92507.0,0.00176842]
[1740450809374,0.15944718,92508.0,92507.0,0.00111442]
[1740450812115,0.19015443,92508.0,92507.0,0.00111442]
[1740450814331,0.19015443,92508.0,92507.0,0.00046042]
[1740450815910,0.21268691,92508.0,92507.0,0.00046042]
[1740450816111,0.20135443,92508.0,92507.0,2.226e-05]
[1740450816754,0.19015443,92508.0,92507.0,2.226e-05]
[1740450816958,0.05135443,92508.0,92507.0,2.226e-05]
[1740450817192,0.00944718,92508.0,92507.0,2.226e-05]
[1740450817367,0.0112,92519.0,92507.0,2.226e-05]
[1740450817775,0.0112,92525.0,92507.0,2.226e-05]
[1740450818601,0.00796467,92516.0,92493.0,0.08052382]
[1740450818755,0.00796467,92516.0,92493.0,0.04011812]
[1740450819661,0.03070725,92515.0,92493.0,0.04011812]
[1740450821094,0.03070725,92515.0,92507.0,0.001695]
[1740450821482,0.0008475,92508.0,92507.0,0.001695]
[1740450821923,0.0008475,92508.0,92493.0,0.03635704]
[1740450822300,0.0008475,92508.0,92492.0,0.0802]
[1740450825317,0.0008475,92508.0,92493.0,0.0489]
[1740450825528,0.0008475,92508.0,92493.0,0.13532529]
[1740450826092,0.0113313,92507.0,92493.0,0.13532529]
[1740450826291,0.0113313,92507.0,92493.0,0.123994]
[1740450826498,0.0008475,92508.0,92493.0,0.123994]
[1740450827481,0.01133149,92507.0,92493.0,0.123994]
[1740450829213,0.01116,92540.0,92493.0,0.123994]
[1740450829418,0.016116,92539.0,92493.0,0.123994]
[1740450829640,0.01133068,92506.0,92493.0,0.03756871]
[1740450829855,0.016116,92539.0,92494.0,0.0781]
[1740450830057,0.01133032,92534.0,92494.0,0.0781]
[1740450830687,0.01133032,92534.0,92503.0,0.08642529]
[1740450830889,0.01145901,92534.0,92505.0,0.0498]
[1740450831091,0.02520603,92534.0,92506.0,0.0761]
[1740450831329,0.01132906,92533.0,92506.0,0.0761]
[1740450832310,0.01132906,92533.0,92513.0,0.08642529]
[1740450832493,0.01132906,92533.0,92514.0,0.076]
[1740450832729,0.01132906,92533.0,92516.0,0.076]
[1740450833671,0.01217666,92533.0,92516.0,0.076]
[1740450834713,0.51217666,92533.0,92516.0,0.076]
[1740450834912,0.15,92532.0,92516.0,0.06828125]
[1740450835079,0.15,92532.0,92516.0,0.06187988]
[1740450835934,0.15,92532.0,92516.0,0.03378588]
[1740450837174,0.15,92532.0,92515.0,0.0479]
[1740450837175,0.15,92532.0,92515.0,0.02619531]
[1740450837430,0.01132921,92531.0,92492.0,0.0016952]
[1740450838167,0.15,92532.0,92492.0,0.0016952]
[1740450838373,0.00803965,92524.0,92492.0,0.0016952]
[1740450838571,0.00803965,92524.0,92493.0,0.08642529]
[1740450840179,0.00803965,92524.0,92495.0,0.0482]
[1740450841411,0.15,92522.0,92495.0,0.0482]
[1740450842056,0.1509978,92522.0,92495.0,0.0482]
[1740450845075,0.15,92520.0,92495.0,0.0482]
[1740450845437,0.00811599,92496.0,92492.0,0.0016952]
[1740450845702,0.15,92494.0,92492.0,0.0016952]
[1740450846479,0.3265,92495.0,92492.0,0.0016952]
[1740450846681,0.0334616,92494.0,92493.0,0.0797]
[1740450848102,0.3265,92495.0,92493.0,0.0797]
[1740450848244,0.3265,92495.0,92494.0,0.0495]
[1740450848440,0.5,92496.0,92495.0,0.0784]
[1740450851132,0.5,92496.0,92494.0,0.0495]
[1740450851508,0.15,92495.0,92492.0,0.00212444]
[1740450851737,0.15,92495.0,92468.0,0.0016956]
[1740450851738,0.15,92493.0,92479.0,0.0803]
[1740450853467,0.15,92493.0,92480.0,0.0486]
[1740450853671,0.01133069,92492.0,92480.0,0.0486]
[1740450855892,0.3265,92491.0,92468.0,0.00182458]
[1740450856121,0.15,92490.0,92469.0,0.1278]
[1740450856328,0.01514542,92464.0,92457.0,0.0482]
[1740450858359,0.03829097,92464.0,92457.0,0.0482]
[1740450858743,0.01514542,92464.0,92458.0,0.0817]
[1740450858951,0.01514542,92464.0,92462.0,0.02]
[1740450859196,0.0009888,92476.0,92463.0,0.17152529]
[1740450859395,0.0009888,92476.0,92475.0,0.1636]
[1740450859595,0.3265,92489.0,92480.0,0.02]
[1740450859799,0.02298499,92493.0,92481.0,0.0985]
[1740450860029,0.5,92483.0,92481.0,0.0985]
[1740450861216,0.5,92483.0,92481.0,0.0785]
[1740450862308,0.15,92482.0,92475.0,0.0451]
[1740450862516,0.15,92482.0,92469.0,0.0787]
[1740450863952,0.15,92482.0,92475.0,0.02]
[1740450864214,0.15,92482.0,92481.0,0.0482]
[1740450864464,0.5,92483.0,92481.0,0.0682]
[1740450865061,0.5,92483.0,92482.0,0.0805]
[1740450865386,0.65,92483.0,92482.0,0.0805]
[1740450866322,0.5,92483.0,92482.0,0.0805]
[1740450866944,0.5,92483.0,92469.0,0.0821]
[1740450867208,0.3265,92482.0,92472.0,0.02]
[1740450867486,0.3265,92482.0,92476.0,0.02]
[1740450867677,0.3265,92482.0,92475.0,0.02]
[1740450867882,0.3265,92482.0,92471.0,0.02]
[1740450868095,0.3265,92482.0,92473.0,0.02]
[1740450868305,0.3265,92482.0,92475.0,0.02]
[1740450868816,0.3265,92482.0,92471.0,0.02]
[1740450868951,0.01133248,92481.0,92471.0,0.02]
[1740450869153,0.16133248,92481.0,92469.0,0.0821]
[1740450869356,0.16133248,92481.0,92472.0,0.02]
[1740450870124,0.16133248,92481.0,92469.0,0.0821]
[1740450871447,0.15,92479.0,92469.0,0.0821]
[1740450871896,0.15,92479.0,92472.0,0.02]
[1740450872089,0.15,92479.0,92475.0,0.02]
[1740450872270,0.15,92479.0,92476.0,0.02]
[1740450872938,0.3265,92480.0,92479.0,0.04]
[1740450874728,0.3265,92480.0,92476.0,0.02]
[1740450875056,0.15,92479.0,92469.0,0.0821]
[1740450875453,0.15,92479.0,92469.0,0.1221]
[1740450875652,0.15,92479.0,92471.0,0.02]
[1740450875794,0.15,92479.0,92472.0,0.02]
[1740450876823,0.3265,92480.0,92472.0,0.02]
[1740450878263,0.00805521,92477.0,92472.0,0.02]
[1740450878695,0.00805521,92477.0,92470.0,0.02]
[1740450878921,0.00805521,92477.0,92469.0,0.1221]
[1740450879132,0.00805521,92477.0,92468.0,0.0016956]
[1740450880834,0.00805521,92477.0,92470.0,0.02]
[1740450881436,0.00805521,92477.0,92468.0,0.0016956]
[1740450881597,0.15,92475.0,92468.0,0.0016956]
[1740450886422,0.15,92475.0,92469.0,0.0786]
[1740450887358,0.3265,92476.0,92472.0,0.02]
[1740450887500,0.3265,92476.0,92471.0,0.02]
[1740450887501,0.3265,92476.0,92475.0,0.02]
[1740450888727,0.4765,92476.0,92475.0,0.02]
[1740450890961,0.47610454,92476.0,92475.0,0.02]
[1740450891101,0.15,92475.0,92468.0,0.0016956]
[1740450891615,0.15,92475.0,92469.0,0.02]
[1740450892087,0.15,92475.0,92468.0,0.0016956]
[1740450892280,0.15,92475.0,92469.0,0.02]
[1740450893424,0.15,92475.0,92473.0,0.02]
[1740450893614,0.15,92475.0,92474.0,0.0827]
[1740450893830,0.15,92475.0,92473.0,0.02]
[1740450896150,0.16133248,92475.0,92473.0,0.00866752]
[1740450897418,0.16133248,92475.0,92472.0,0.02]
[1740450897551,0.16133248,92475.0,92471.0,0.02]
[1740450897770,0.16133248,92475.0,92472.0,0.02]
[1740450897957,0.32610454,92474.0,92471.0,0.02]
[1740450899853,0.32610454,92474.0,92471.0,0.00866752]
[1740450900476,0.32610454,92474.0,92473.0,0.00866752]
[1740450900477,0.47610454,92474.0,92473.0,0.00866752]
[1740450900624,0.47610454,92474.0,92473.0,0.01733504]
[1740450901427,0.48743702,92474.0,92473.0,0.01733504]
[1740450901631,0.32610454,92474.0,92473.0,0.09433504]
[1740450901836,0.32610454,92474.0,92473.0,0.14393504]
[1740450902235,0.5,92476.0,92475.0,0.01733504]
[1740450902436,0.5,92476.0,92475.0,0.09973504]
[1740450903661,0.5,92476.0,92475.0,0.09106752]
[1740450903830,0.5,92476.0,92475.0,0.09973504]
[1740450904640,0.22085374,92476.0,92475.0,0.09106752]
[1740450904845,0.22085374,92476.0,92475.0,0.09973504]
[1740450905042,0.22085374,92476.0,92475.0,0.09106752]
[1740450905245,0.22085374,92476.0,92475.0,0.09973504]
[1740450905724,0.49999974,92476.0,92475.0,0.09973504]
[1740450908503,0.49999974,92476.0,92475.0,0.09106752]
[1740450909131,0.49999974,92476.0,92475.0,0.09973504]
[1740450909330,0.49999974,92476.0,92475.0,0.09106752]
[1740450909778,0.49999974,92476.0,92475.0,0.00866752]
[1740450910083,0.49999974,92476.0,92468.0,0.0016956]
[1740450910308,0.49999974,92476.0,92475.0,0.01733504]
[1740450912938,0.49999974,92476.0,92475.0,0.00866752]
[1740450913045,0.49999974,92476.0,92471.0,0.00866752]
[1740450913249,0.49999974,92476.0,92475.0,0.01733504]
[1740450919458,0.49999974,92476.0,92475.0,0.09733504]
[1740450919895,0.50084844,92476.0,92475.0,0.09733504]
[1740450921439,0.50084844,92476.0,92475.0,0.01733504]
[1740450921861,0.26856011,92476.0,92475.0,0.01733504]
[1740450922208,0.26856011,92476.0,92475.0,0.00866752]
[1740450922339,0.26856011,92476.0,92474.0,0.0008]
[1740450922542,0.26856011,92476.0,92475.0,0.00866752]
[1740450922739,0.29558576,92476.0,92475.0,0.01733504]
[1740450923004,0.50084811,92476.0,92475.0,0.01733504]
[1740450924450,0.50084811,92476.0,92475.0,0.00866752]
[1740450924913,0.82695265,92476.0,92475.0,0.00866752]
[1740450925131,0.82695265,92476.0,92474.0,0.0008]
[1740450925356,0.82695265,92476.0,92475.0,0.00866752]
[1740450925592,0.82695265,92476.0,92474.0,0.0008]
[1740450925593,0.83520022,92476.0,92474.0,0.0008]
[1740450925844,0.83520022,92476.0,92475.0,0.00866752]
[1740450926086,0.98520022,92476.0,92475.0,0.00866752]
[1740450926311,0.9965327,92476.0,92475.0,0.00866752]
[1740450929634,0.9965327,92476.0,92475.0,0.01733504]
[1740450930257,0.9965327,92476.0,92475.0,0.00600256]
[1740450930596,0.98520022,92476.0,92475.0,0.00600256]
[1740450931770,0.98995784,92476.0,92475.0,0.00600256]
[1740450931976,0.98995784,92476.0,92475.0,0.00200256]
[1740450932940,0.98995784,92476.0,92475.0,0.00369976]
[1740450934111,0.98995784,92476.0,92475.0,0.0016972]
[1740450934914,0.15,92475.0,92471.0,0.0016974]
[1740450935113,0.2265,92475.0,92471.0,0.0016974]
[1740450935322,0.00473437,92474.0,92471.0,0.0016974]
[1740450936655,0.00473437,92474.0,92471.0,0.0026974]
[1740450936856,0.00473437,92474.0,92472.0,0.00200256]
[1740450936857,0.32610454,92473.0,92472.0,0.00200256]
[1740450937162,0.4808363,92473.0,92472.0,0.00200256]
[1740450938696,0.3308363,92473.0,92472.0,0.00200256]
[1740450938996,0.3308363,92473.0,92472.0,0.00400256]
[1740450944098,0.3308363,92473.0,92472.0,0.00569996]
[1740450945278,0.00473176,92473.0,92472.0,0.00569996]
[1740450945495,0.50084811,92476.0,92475.0,0.00200256]
[1740450946147,0.51217943,92476.0,92475.0,0.00200256]
[1740450948291,0.51217943,92476.0,92475.0,0.00300256]
[1740450955458,0.51137943,92476.0,92475.0,0.00300256]
[1740450955658,0.51137943,92476.0,92475.0,0.00200256]
[1740450955792,0.51137943,92476.0,92475.0,0.00300256]
[1740450956433,0.51217943,92476.0,92475.0,0.00469996]
[1740450958900,0.22000287,92476.0,92475.0,0.00469996]
[1740450959983,0.51133087,92476.0,92475.0,0.00469996]
[1740450960775,0.51608545,92476.0,92475.0,0.00469996]
[1740450963717,0.51608545,92476.0,92463.0,0.02880978]
[1740450964578,0.51608545,92476.0,92475.0,0.001]
[1740450964735,0.51608545,92476.0,92463.0,0.02880978]
[1740450965147,0.51608545,92476.0,92463.0,0.001]
[1740450965773,0.51608545,92476.0,92454.0,0.0016946]
[1740450966186,0.32610454,92475.0,92454.0,0.0016946]
[1740450966398,0.00834847,92466.0,92454.0,0.0016946]
[1740450966780,0.15,92464.0,92454.0,0.0016946]
[1740450966966,0.2291,92462.0,92425.0,0.01112]
[1740450967179,0.55520454,92462.0,92425.0,0.01112]
[1740450967382,0.08642529,92455.0,92425.0,0.01112]
[1740450967981,0.15473411,92461.0,92426.0,0.00151451]
[1740450967982,0.00473411,92454.0,92426.0,0.00151451]
[1740450968361,0.00473411,92454.0,92425.0,0.001]
[1740450968362,6.028e-05,92454.0,92425.0,0.001]
[1740450968576,0.00797706,92439.0,92425.0,0.001]
[1740450968723,0.50797706,92439.0,92425.0,0.001]
[1740450968908,0.00470765,92438.0,92425.0,0.001]
[1740450969115,0.00470765,92438.0,92414.0,0.0216946]
[1740450969512,0.00470765,92438.0,92425.0,0.001]
[1740450970793,0.00470765,92438.0,92414.0,0.0016946]
[1740450970993,0.00770765,92438.0,92415.0,0.00151457]
[1740450971363,0.00470765,92437.0,92414.0,0.00320911]
[1740450971566,0.00470765,92437.0,92414.0,0.0016946]
[1740450971770,0.01826272,92438.0,92414.0,0.0016946]
[1740450971981,0.00470765,92436.0,92414.0,0.0016946]
[1740450972178,0.01826272,92438.0,92414.0,0.0016946]
[1740450972384,0.00470765,92435.0,92414.0,0.0016946]
[1740450972590,0.01826272,92438.0,92414.0,0.0016946]
[1740450972767,0.00470765,92434.0,92414.0,0.0016946]
[1740450972966,0.01826272,92438.0,92415.0,0.00151473]
[1740450973110,0.00470765,92433.0,92415.0,0.00151473]
[1740450973311,0.01826272,92438.0,92415.0,0.00151473]
[1740450973512,0.00470765,92432.0,92415.0,0.00151473]
[1740450973706,0.01826272,92438.0,92414.0,0.0016946]
[1740450973921,0.00470765,92431.0,92414.0,0.0016946]
[1740450974122,0.01826272,92438.0,92414.0,0.0016946]
[1740450974347,0.00470765,92430.0,92414.0,0.0016946]
[1740450974563,0.01826272,92438.0,92414.0,0.0016946]
[1740450974738,0.16826272,92438.0,92414.0,0.0016946]
[1740450974943,0.00470765,92437.0,92414.0,0.0016946]
[1740450975175,0.15,92435.0,92414.0,0.0016946]
[1740450975371,0.0818,92434.0,92414.0,0.0016946]
[1740450975633,0.08648324,92434.0,92414.0,0.0016946]
[1740450976360,0.00803844,92415.0,92414.0,0.0016946]
[1740450976711,0.01271511,92415.0,92414.0,0.0016946]
[1740450977687,0.01271511,92415.0,92414.0,0.00182029]
[1740450978447,0.48881965,92415.0,92414.0,0.00182029]
[1740450978680,0.98881965,92415.0,92414.0,0.00182029]
[1740450979139,0.83881965,92415.0,92414.0,0.00182029]
[1740450982233,0.84211369,92415.0,92414.0,0.00182029]
[1740450984613,0.51600915,92415.0,92414.0,0.00333509]
[1740450984736,0.51600915,92415.0,92414.0,0.02333509]
[1740450984955,0.51600915,92415.0,92414.0,0.02182029]
[1740450985151,0.51600915,92415.0,92414.0,0.00182029]
[1740450990682,0.52419592,92415.0,92414.0,0.00182029]
[1740450991511,0.85030046,92415.0,92414.0,0.00182029]
[1740450996861,0.51600915,92415.0,92414.0,0.00182029]
[1740450997067,0.51600915,92415.0,92414.0,0.08493497]
[1740450997267,0.51600915,92415.0,92414.0,0.08342029]
[1740451001243,0.51600915,92415.0,92414.0,0.10342029]
[1740451001659,0.51600915,92415.0,92414.0,0.10493494]
[1740451002462,0.51600915,92415.0,92414.0,0.10342029]
[1740451003490,0.51600915,92415.0,92414.0,0.10493494]
[1740451003708,0.51600915,92415.0,92414.0,0.17083494]
[1740451006229,0.5135255,92415.0,92414.0,0.18195494]
[1740451006424,0.33641576,92415.0,92414.0,0.33195494]
[1740451006693,0.23641576,92415.0,92414.0,0.28454029]
[1740451006894,0.23641576,92415.0,92414.0,0.29114029]
[1740451007101,0.23641576,92415.0,92414.0,0.32025432]
[1740451007307,0.00473248,92415.0,92414.0,0.32025432]
[1740451007438,0.2360205,92469.0,92445.0,0.0821]
[1740451007649,0.2360205,92469.0,92446.0,0.01263395]
[1740451007874,0.00815088,92459.0,92446.0,0.01263395]
[1740451008078,0.01133166,92468.0,92447.0,0.0134734]
[1740451008285,0.01133166,92468.0,92448.0,0.00151394]
[1740451008657,0.0114337,92468.0,92448.0,0.00151394]
[1740451009294,0.2319277,92468.0,92448.0,0.00151394]
[1740451009673,0.22059604,92468.0,92448.0,0.00151394]
[1740451009869,0.01133186,92467.0,92448.0,0.00151394]
[1740451010077,0.01133186,92467.0,92451.0,0.02]
[1740451010421,0.01133186,92467.0,92452.0,0.0015139]
[1740451013758,0.00473545,92466.0,92452.0,0.0015139]
[1740451015407,0.00473545,92466.0,92453.0,0.02]
[1740451015610,0.00473545,92466.0,92459.0,0.02]
[1740451015782,0.00473545,92466.0,92460.0,0.00151383]
[1740451016187,0.00473545,92466.0,92459.0,0.02151383]
[1740451017303,0.00473545,92466.0,92459.0,0.02]
[1740451017542,0.00473545,92466.0,92454.0,0.02]
[1740451017740,0.00473545,92466.0,92455.0,0.00151387]
[1740451018538,0.00473545,92466.0,92459.0,0.02]
[1740451018745,0.00473545,92466.0,92460.0,0.00151383]
[1740451019163,0.00473545,92466.0,92451.0,0.02]
[1740451019384,0.00473545,92466.0,92452.0,0.01112]
[1740451019540,0.00473545,92466.0,92453.0,0.02151387]
[1740451020367,0.00473545,92466.0,92459.0,0.02]
[1740451020583,0.00473545,92466.0,92460.0,0.00151382]
[1740451022732,0.00473545,92466.0,92462.0,0.02]
[1740451022903,0.00473545,92466.0,92463.0,0.0015138]
[1740451024532,0.00473545,92466.0,92463.0,0.01366518]
[1740451024733,0.01133186,92467.0,92466.0,0.29999555]
[1740451026990,0.02830616,92467.0,92466.0,0.29999555]
[1740451029110,0.01133186,92467.0,92466.0,0.29999555]
[1740451029536,0.01133186,92467.0,92466.0,0.31999555]
[1740451029944,0.01133186,92467.0,92466.0,0.29999555]
[1740451030144,0.01133186,92467.0,92466.0,0.31999555]
[1740451030390,0.01133186,92467.0,92466.0,0.29999555]
[1740451031959,0.01133186,92467.0,92466.0,0.31999555]
[1740451032413,0.01544813,92467.0,92466.0,0.39659555]
[1740451032924,0.01133186,92467.0,92466.0,0.39659555]
[1740451033470,0.01133186,92467.0,92466.0,0.41659555]
[1740451035715,0.01133186,92467.0,92466.0,0.42771555]
[1740451037173,0.02830333,92467.0,92466.0,0.42771555]
[1740451037301,0.03243959,92467.0,92466.0,0.42771555]
[1740451038695,0.02830333,92467.0,92466.0,0.42771555]
[1740451039064,0.02830333,92467.0,92466.0,0.31999555]
[1740451039248,0.01133186,92467.0,92466.0,0.31111555]
[1740451039682,0.01133186,92467.0,92466.0,0.35111555]
[1740451039909,0.01133186,92467.0,92466.0,0.31111555]
[1740451040112,0.51133186,92467.0,92466.0,0.35111555]
[1740451040349,0.51133186,92467.0,92466.0,0.33111555]
[1740451040495,0.51548275,92467.0,92466.0,0.35111555]
[1740451040707,0.51548275,92467.0,92466.0,0.39445685]
[1740451041536,0.51548275,92467.0,92466.0,0.35111555]
[1740451041900,0.51548275,92467.0,92466.0,0.33999555]
[1740451042109,0.51548275,92467.0,92466.0,0.35111555]
[1740451043540,0.53245475,92467.0,92466.0,0.35111555]
[1740451044155,0.53245475,92467.0,92466.0,0.42771555]
[1740451044365,0.53245475,92467.0,92466.0,0.47065685]
[1740451048897,0.51548275,92467.0,92466.0,0.47065685]
[1740451049122,0.51548275,92467.0,92466.0,0.62065685]
[1740451049663,0.21745273,92467.0,92466.0,0.62065685]
[1740451050808,0.50415073,92467.0,92466.0,0.62065685]
[1740451051802,0.50415073,92467.0,92466.0,0.62235425]
[1740451055825,0.52111755,92467.0,92466.0,0.62235425]
[1740451062767,0.50415073,92467.0,92466.0,0.62235425]
[1740451064799,0.50499943,92467.0,92466.0,0.62235425]
[1740451067293,0.52196441,92467.0,92466.0,0.62235425]
[1740451068325,0.02196457,92467.0,92466.0,0.62235425]
[1740451068728,0.01781368,92467.0,92466.0,0.62235425]
[1740451070329,0.0008487,92467.0,92466.0,0.62235425]
[1740451070531,0.00486787,92467.0,92466.0,0.62235425]
[1740451070731,0.00486787,92467.0,92466.0,0.61123425]
[1740451070951,0.00486787,92467.0,92466.0,0.62235425]
[1740451075078,0.02183254,92467.0,92466.0,0.62235425]
[1740451075851,0.01781337,92467.0,92466.0,0.62235425]
[1740451076821,0.0008487,92467.0,92466.0,0.62235425]
[1740451078700,0.0001947,92467.0,92466.0,0.62235425]
[1740451079017,0.0001947,92467.0,92466.0,0.65592105]
[1740451079421,0.00060859,92469.0,92468.0,0.2659]
[1740451079695,0.00065505,92469.0,92468.0,0.38589209]
[1740451080117,0.00065505,92469.0,92468.0,0.39023109]
[1740451080443,0.00065505,92469.0,92468.0,0.38589209]
[1740451081003,0.00065505,92469.0,92468.0,0.40609553]
[1740451081205,0.00065505,92469.0,92468.0,0.4935214]
[1740451082340,0.00065505,92469.0,92468.0,0.97068347]
[1740451082546,0.00065505,92469.0,92468.0,0.91711667]
[1740451082747,0.00065505,92469.0,92468.0,0.95900912]
[1740451083382,0.00065505,92469.0,92468.0,0.51544522]
[1740451083585,0.00065505,92469.0,92468.0,0.48184705]
[1740451083762,0.00065505,92469.0,92468.0,0.51544545]
[1740451084196,0.00065505,92469.0,92468.0,0.48184705]
[1740451084606,0.00065505,92469.0,92468.0,0.46184705]
[1740451084797,0.00065505,92469.0,92468.0,0.48184705]
[1740451084996,0.00065505,92469.0,92468.0,0.38464931]
[1740451085197,0.00065505,92469.0,92468.0,0.41826692]
[1740451085612,0.00065505,92469.0,92468.0,0.38464931]
[1740451086005,0.00065505,92469.0,92468.0,0.35352931]
[1740451086331,0.01197845,92469.0,92468.0,0.35352931]
[1740451086461,0.01197845,92469.0,92468.0,0.15874931]
[1740451086823,0.0289426,92469.0,92468.0,0.12005916]
[1740451087602,0.0289426,92469.0,92468.0,0.14005916]
[1740451088167,0.0289426,92469.0,92468.0,0.12005916]
[1740451088389,0.0289426,92469.0,92468.0,0.14005916]
[1740451088974,0.0289426,92469.0,92468.0,0.02151329]
[1740451089143,0.0289426,92469.0,92468.0,0.05263329]
[1740451089348,0.0289426,92469.0,92468.0,0.03263329]
[1740451089745,0.01197845,92469.0,92468.0,0.03263329]
[1740451090328,0.01197845,92469.0,92468.0,0.01263329]
[1740451090545,0.01197845,92469.0,92468.0,0.09324956]
[1740451091150,0.01197845,92469.0,92468.0,0.25212956]
[1740451091349,0.01197845,92469.0,92468.0,0.26173627]
[1740451091955,0.01197845,92469.0,92468.0,0.33813627]
[1740451094367,0.01197845,92469.0,92468.0,0.26173627]
[1740451095624,0.02894312,92469.0,92468.0,0.26173627]
[1740451096396,0.02894312,92469.0,92468.0,0.33683627]
[1740451096612,0.00542684,92469.0,92468.0,0.33683627]
[1740451096815,0.01132343,92469.0,92468.0,0.33683627]
[1740451097217,0.02828649,92469.0,92468.0,0.33683627]
[1740451097916,0.02828649,92469.0,92468.0,0.26173627]
[1740451098148,0.02828649,92469.0,92468.0,0.24173627]
[1740451098546,0.01132343,92469.0,92468.0,0.25061627]
[1740451098728,0.01132343,92469.0,92468.0,0.26173627]
[1740451099317,0.0008486,92479.0,92475.0,0.04]
[1740451099549,0.0008486,92479.0,92475.0,0.31008683]
[1740451099764,0.0008486,92479.0,92475.0,0.30857363]
[1740451100766,0.0008478,92481.0,92475.0,0.30857363]
[1740451101002,0.05445788,92577.0,92517.0,0.02]
[1740451101203,0.08642529,92526.0,92518.0,0.0126328]
[1740451101600,0.08642529,92526.0,92519.0,0.02]
[1740451101806,0.0038599,92525.0,92520.0,0.00151288]
[1740451102915,0.0038599,92525.0,92524.0,0.02]
[1740451103124,0.10217781,92536.0,92529.0,0.02]
[1740451103544,0.15,92535.0,92529.0,0.02]
[1740451103887,0.1265,92534.0,92529.0,0.02]
[1740451104091,0.15,92532.0,92529.0,0.02]
[1740451104287,0.15,92530.0,92529.0,0.02]
[1740451104499,0.2765,92530.0,92529.0,0.02]
[1740451106101,0.2273,92528.0,92523.0,0.02]
[1740451106239,0.045,92527.0,92522.0,0.02]
[1740451106444,0.15,92531.0,92522.0,0.02]
[1740451106688,0.045,92528.0,92523.0,0.00151286]
[1740451107008,0.045,92525.0,92523.0,0.02]
[1740451108861,0.045,92525.0,92522.0,0.02]
[1740451109066,0.0466,92523.0,92518.0,0.01112]
[1740451109271,0.081,92522.0,92519.0,0.01108]
[1740451109505,0.081,92520.0,92519.0,0.01108]
[1740451109722,0.081,92520.0,92519.0,0.05108]
[1740451110456,0.1296,92520.0,92519.0,0.01108]
[1740451110677,0.1296,92520.0,92519.0,0.03108]
[1740451110865,0.13347778,92520.0,92519.0,0.01108]
[1740451111071,0.13347778,92520.0,92519.0,0.03108]
[1740451112388,0.05247778,92520.0,92519.0,0.05259293]
[1740451115026,0.01520028,92520.0,92519.0,0.05259293]
[1740451123907,0.01520028,92520.0,92519.0,0.05428913]
[1740451124139,0.01520028,92520.0,92519.0,0.05971804]
[1740451126297,0.01520028,92520.0,92519.0,0.14021804]
[1740451126787,0.0113225,92520.0,92519.0,0.14021804]
[1740451128125,0.02827892,92520.0,92519.0,0.14021804]
[1740451128529,0.0113225,92520.0,92519.0,0.14021804]
[1740451135250,0.0282776,92520.0,92519.0,0.14021804]
[1740451139093,0.5282776,92520.0,92519.0,0.14021804]
[1740451139297,0.53217747,92520.0,92519.0,0.14021804]
[1740451140455,0.03217747,92520.0,92519.0,0.14021804]
[1740451140795,0.0282776,92520.0,92519.0,0.14021804]
[1740451144554,0.0282776,92520.0,92519.0,0.0216962]
[1740451144703,0.0744776,92520.0,92519.0,0.02320875]
[1740451144923,0.0744776,92520.0,92519.0,0.0127762]
[1740451145147,0.06145041,92520.0,92519.0,0.0527762]